Cogmind - Beta 11 X9 @@@ ROGUE MODE // 2022.01.23 @ 12:33:44 Player: LU-1G1 Result: Destroyed by as-07793 with Assembled Rifle Performance ------------- Evolutions (0) 0 Regions Visited (4) 800 Robots Destroyed (25) 125 Value Destroyed (550) 550 Prototype IDs (23) 460 Alien Tech Used (0) 0 Bonus (325) 325 TOTAL SCORE: 2260 Bonus ------- Follower Combat Kills 25 Aligned with FarCom 300 Cogmind --------- Core Integrity 0/250 Matter 300/300 Energy 100/100 System Corruption 3% Temperature Cool (0) Movement Core (700) Ox13 Location -9/Mines Parts ------- > --- POWER (1) -------- (None) > --- PROPULSION (2) --- (None) > --- UTILITY (2) ------ High-capacity Storage Unit > --- WEAPON (2) ------- Light Assault Rifle > --- INVENTORY (20) --- Light Ion Engine Light Nuclear Core Heat Sink Small Storage Unit High-capacity Matter Pod (200) Signal Interpreter Light Armor Plating Supersonic Drone Bay (1/1) Light Assault Rifle Hammer Mining Claw Peak State ------------ > --- POWER ------------ Light Ion Engine > --- PROPULSION ------- Light Treads Light Treads > --- UTILITY ---------- High-capacity Storage Unit Core Shielding > --- WEAPON ----------- Assault Rifle Assault Rifle > --- INVENTORY -------- Light Ion Engine Light Nuclear Core Wheel Small Storage Unit Medium Storage Unit High-capacity Matter Pod Signal Interpreter Supersonic Drone Bay Light Assault Rifle Light Assault Rifle Mining Claw [Rating: 9] Favorites ----------- Power Light Ion Engine Engine Light Ion Engine Propulsion Light Treads Treads Light Treads Wheel Wheel Utility Core Shielding Storage Medium Storage Unit Protection Core Shielding Weapon Assault Rifle Ballistic Gun Assault Rifle Build | -11 -10 -10 -10 -9 ------- Run | Scr Mat Min Exi Min Slots Evolved . | . . . . . Power . | . . . . . Propulsion . | . . . . . Utility . | . . . . . Weapon . | . . . . . Parts Attached 20 | 6 4 2 1 7 Power 3 | 1 1 . . 1 Engine 3 | 1 1 . . 1 Core . | . . . . . Reactor . | . . . . . Propulsion 5 | 2 . . . 3 Treads 4 | 2 . . . 2 Leg . | . . . . . Wheel 1 | . . . . 1 Hover . | . . . . . Flight . | . . . . . Utility 4 | 1 2 . 1 . Device . | . . . . . Storage 3 | 1 1 . 1 . Processor . | . . . . . Hackware . | . . . . . Protection 1 | . 1 . . . Artifact . | . . . . . Weapon 8 | 2 1 2 . 3 Energy Gun . | . . . . . Energy Cannon . | . . . . . Ballistic Gun 8 | 2 1 2 . 3 Ballistic Cannon . | . . . . . Launcher . | . . . . . Special Weapon . | . . . . . Impact Weapon . | . . . . . Slashing Weapon . | . . . . . Piercing Weapon . | . . . . . Special Melee Weapon . | . . . . . Unidentified Prototypes . | . . . . . Parts Lost 12 | . . 1 . 11 Power 2 | . . . . 2 Propulsion 4 | . . . . 4 Utility 1 | . . . . 1 Weapon 5 | . . 1 . 4 Highest Loss Streak 6 | . . 1 . 6 Average Slot Usage (%) 96 | . 98 97 100 93 Engine 13 | . 14 14 14 13 Treads 27 | . 28 28 28 27 Storage 14 | . 14 14 14 14 Protection 13 | . 12 14 14 14 Ballistic Gun 25 | . 28 25 28 22 Naked Turns . | . . . . . Heaviest Build 48 | 11 18 18 48 48 Greatest Support 40 | 40 40 40 40 40 Greatest Overweight (x) 4 | . . . 1 4 Average Overweight (x) . | . . . . 1 Largest Inventory Capacity 20 | 8 10 10 20 20 Average Capacity 12 | 6 8 10 11 20 Most Carried 14 | 6 10 10 11 14 Average Carried 10 | 4 8 9 10 12 Final Capacity 20 | 8 10 10 20 20 Final Carried 11 | 6 10 10 10 11 Class Distribution -------------------- 100% | Mutant Dominant Class ---------------- Mutant | -10/Materials Mutant | -10/Mines Mutant | -10/Exiles Mutant | -9/Mines Resources | -11 -10 -10 -10 -9 ----------- Run | Scr Mat Min Exi Min Matter Collected 869 | 288 138 297 . 146 Remotely . | . . . . . Salvage Created 853 | 134 186 217 . 316 Parts 48 | 6 12 10 . 20 Haulers Intercepted 1 | . 1 . . . Recyclers Shooed 2 | 1 1 . . . Parts Field Recycled . | . . . . . Retrieved Matter . | . . . . . Parts Self-Destructed . | . . . . . Prevented . | . . . . . Kills | -11 -10 -10 -10 -9 ------- Run | Scr Mat Min Exi Min Combat Hostiles Destroyed 19 | . 5 5 . 9 Guns 19 | . 5 5 . 9 Classes Destroyed 7 | 2 2 1 . 2 Worker 1 | . . . . 1 Tunneler 2 | 2 . . . . Hauler 1 | . 1 . . . Recycler 2 | 1 1 . . . Swarmer 8 | . 5 . . 3 Grunt 10 | . . 5 . 5 Brawler 1 | . . . . 1 Best Kill Streak 4 | 3 4 2 . 3 Combat Bots Only 3 | . 3 2 . 3 Max Kills in Single Turn 1 | 1 1 1 . 1 Gunslinging . | . . . . . Exploded . | . . . . . Melee . | . . . . . Uniques/NPCs Destroyed . | . . . . . Combat | -11 -10 -10 -10 -9 -------- Run | Scr Mat Min Exi Min Damage Taken 1370 | . 155 320 . 895 Core 253 | . 27 23 . 203 Absorbed by Shields . | . . . . . Core Remaining (%) 100 | 100 . . . . Volleys Fired 70 | 7 15 18 . 30 Largest 2 | 2 2 2 . 2 Hottest 40 | 40 40 40 . 40 Shots Fired 131 | 14 30 33 . 54 Gun 131 | 14 30 33 . 54 Cannon . | . . . . . Launcher . | . . . . . Special . | . . . . . Kinetic 131 | 14 30 33 . 54 Thermal . | . . . . . Explosive . | . . . . . Electromagnetic . | . . . . . Robot Hit Streak 13 | 3 7 13 . 10 Robot Miss Streak 3 | 2 3 1 . 3 Penetration Max . | . . . . . Secondary Targets 1 | . . . . 1 Max Gunslinging Chain 1 | . . . . 1 Shots Hit Robots 89 | 8 17 28 . 36 Core Hits 44 | 4 7 13 . 20 Critical Kills . | . . . . . Critical Parts Destroyed 2 | . 1 . . 1 Critical Strikes 2 | . 1 . . 1 Destroy 2 | . 1 . . 1 Melee Attacks . | . . . . . Impact . | . . . . . Slashing . | . . . . . Piercing . | . . . . . Sneak Attacks . | . . . . . Combat Hostiles . | . . . . . Follow-up Attacks . | . . . . . Damage Inflicted 1128 | 98 236 358 . 436 Guns 1097 | 93 234 354 . 416 Cannons . | . . . . . Explosions . | . . . . . Melee . | . . . . . Ramming 31 | 5 2 4 . 20 Kinetic 1097 | 93 234 354 . 416 Thermal . | . . . . . Explosive . | . . . . . Electromagnetic . | . . . . . Impact . | . . . . . Slashing . | . . . . . Piercing . | . . . . . Highest Corruption 3 | . 1 1 1 3 Average Corruption 1 | . 1 1 1 1 Corruption Purged . | . . . . . Effects 3 | . . 1 . 2 Message Errors 1 | . . . . 1 Energy Discharges 1 | . . 1 . . Data Loss (minor) 1 | . . . . 1 Overload Shots . | . . . . . Overflow Damage . | . . . . . Projectiles . | . . . . . Explosions . | . . . . . Melee . | . . . . . Knockbacks . | . . . . . Impact . | . . . . . Kinetic . | . . . . . Secondary . | . . . . . Self-Inflicted Damage . | . . . . . Shots . | . . . . . Rammed 6 | 1 1 2 . 2 Targets Rammed 7 | 1 1 2 . 3 Kicked . | . . . . . Crushed 1 | . . . . 1 Highest Temperature 31 | . . 2 . 31 Average Temperature 9 | . . 2 . 11 Received Heat Transfer 518 | . . 171 . 347 Siege Activations . | . . . . . Robots Corrupted . | . . . . . Combat Hostiles . | . . . . . Parts Fried . | . . . . . Impact Corruptions . | . . . . . Robots Melted . | . . . . . Combat Hostiles . | . . . . . Parts Melted . | . . . . . Heat Transferred . | . . . . . Parts Sabotaged . | . . . . . Parts Stolen . | . . . . . Parts Stripped . | . . . . . Power Chain Reactions . | . . . . . Missiles Intercepted . | . . . . . Alert | -11 -10 -10 -10 -9 ------- Run | Scr Mat Min Exi Min Peak Influence 166 | 15 166 120 . 123 Initial 9 | . 9 . . . Average 59 | 5 65 73 . 54 Maximum Alert Level . | . . . . . Low Security (%) 100 | 100 100 100 . 100 Level 1 . | . . . . . Level 2 . | . . . . . Level 3 . | . . . . . Level 4 . | . . . . . Level 5 . | . . . . . High Security . | . . . . . Max Security . | . . . . . Squads Dispatched . | . . . . . Investigation . | . . . . . Extermination . | . . . . . Reinforcement . | . . . . . Assault . | . . . . . Garrison . | . . . . . Intercept . | . . . . . Construction Impeded . | . . . . . Haulers Reinforced . | . . . . . Active Scanning Responses . | . . . . . Cargo Convoy Interrupts . | . . . . . Stealth | -11 -10 -10 -10 -9 --------- Run | Scr Mat Min Exi Min Distress Signals . | . . . . . Communications Jammed . | . . . . . Distress Signals . | . . . . . Times Spotted 45 | . 9 6 . 30 Peak Tracking Total 20 | . 4 2 . 20 Tactical Retreats . | . . . . . Traps | -11 -10 -10 -10 -9 ------- Run | Scr Mat Min Exi Min Traps Triggered 1 | . 1 . . . Indirectly . | . . . . . Trap Hack Attempts . | . . . . . Triggered . | . . . . . Disarmed . | . . . . . Reprogrammed . | . . . . . Reused . | . . . . . Traps Extracted . | . . . . . Installed . | . . . . . Triggered 1 | . . 1 . . Machines | -11 -10 -10 -10 -9 ---------- Run | Scr Mat Min Exi Min Machines Disabled . | . . . . . Max in Single Turn . | . . . . . Machines Sabotaged . | . . . . . Garrisons Compromised . | . . . . . Overloaded Fab Kills . | . . . . . Hacking | -11 -10 -10 -10 -9 --------- Run | Scr Mat Min Exi Min Machines Accessed 5 | . 3 . 2 . Terminals 3 | . 3 . . . Fabricators . | . . . . . Repair Stations . | . . . . . Recycling Units . | . . . . . Scanalyzers . | . . . . . Garrison Access . | . . . . . Total Hacks 11 | . 9 . 2 . Successful 7 | . 5 . 2 . Failed 3 | . 3 . . . Catastrophic . | . . . . . Database Lockouts 1 | . 1 . . . Manual 9 | . 8 . 1 . Terminals 9 | . 9 . . . Fabricators . | . . . . . Repair Stations . | . . . . . Recycling Units . | . . . . . Scanalyzers . | . . . . . Garrison Access . | . . . . . Terminal Hacks 6 | . 4 . 2 . Record 1 | . . . 1 . Part Schematic 2 | . 2 . . . Terminal Index 1 | . 1 . . . Zone Layout 1 | . 1 . . . EX-Prototype ID Bank 1 | . . . 1 . Fabricator Hacks . | . . . . . Repair Station Hacks . | . . . . . Recycling Unit Hacks . | . . . . . Scanalyzer . | . . . . . Garrison Access Hacks . | . . . . . Unauthorized Hacks 1 | . 1 . . . Terminals 1 | . 1 . . . Operators 1 | . 1 . . . Fabricators . | . . . . . Repair Stations . | . . . . . Recycling Units . | . . . . . Scanalyzers . | . . . . . Garrison Access . | . . . . . Data Cores Recovered . | . . . . . Used . | . . . . . Hacking Detections 3 | . 3 . . . Full Trace Events 1 | . 1 . . . Feedback Events . | . . . . . Feedback Blocked . | . . . . . Robot Schematics Acquired . | . . . . . Robots Built . | . . . . . Authchips . | . . . . . Time . | . . . . . Total Robot Build Rating . | . . . . . Part Schematics Acquired 2 | . 2 . . . Parts Built . | . . . . . Authchips . | . . . . . Time . | . . . . . Total Part Build Rating . | . . . . . Parts Repaired . | . . . . . Time . | . . . . . Parts Recycled . | . . . . . Recycled Matter . | . . . . . Retrieved Matter . | . . . . . Retrieved Components . | . . . . . Parts Scanalyzed . | . . . . . Part Schematics Acquired . | . . . . . Parts Damaged . | . . . . . Bothacking | -11 -10 -10 -10 -9 ------------ Run | Scr Mat Min Exi Min Used RIF Installer . | . . . . . Robots Hacked . | . . . . . Non-combat . | . . . . . Combat . | . . . . . Robot Hacks Applied . | . . . . . Relay Couplers Released . | . . . . . Fabnet Peak Effective % . | . . . . . Robots Rewired . | . . . . . Allies Hacked . | . . . . . Hacks Repelled . | . . . . . Allies | -11 -10 -10 -10 -9 -------- Run | Scr Mat Min Exi Min Total Allies 3 | . . 3 . . Largest Group 3 | . . 3 3 3 Highest-Rated Group 40 | . . 40 40 40 Highest-Rated Ally 16 | . . 16 16 16 Total Orders . | . . . . . Ally Attacks 24 | . . . . 24 Total Damage 298 | . . . . 298 Kills 1 | . . . . 1 Allies Corrupted . | . . . . . Allies Melted . | . . . . . Intel | -11 -10 -10 -10 -9 ------- Run | Scr Mat Min Exi Min Robot Analysis Total . | . . . . . Derelict Logs Recovered 3 | . . 2 . 1 Drone Launches . | . . . . . Drone Recoveries . | . . . . . Exploration | -11 -10 -10 -10 -9 ------------- Run | Scr Mat Min Exi Min Turns Passed 2176 | 108 459 453 515 641 Spaces Moved 1063 | 48 250 239 300 226 Core 4 | 4 . . . . Treads 1056 | 44 250 239 300 223 Legs . | . . . . . Wheels 3 | . . . . 3 Hover . | . . . . . Flight . | . . . . . Fastest Speed 50 | 50 160 160 160 140 Average Speed 179 | 150 160 160 170 239 Slowest Speed 320 | 160 160 160 240 320 Overloaded Moves . | . . . . . Propulsion Burnouts . | . . . . . Robots Hopped . | . . . . . Cave-ins Triggered . | . . . . . Exploration Rate (%) 43 | 4 41 56 69 49 Regions Visited 4 Branch Regions 3 Pre-discovered Areas 1 | . . . 1 . Known Exits Taken . | . . . . . Unknown Exits Taken 4 | 1 1 1 1 . Scrap Searched 5 | . . 2 . 3 Spaces Dug . | . . . . . Terrain Destroyed . | . . . . . Melee . | . . . . . Projectile . | . . . . . AOE . | . . . . . Terrain Rammed . | . . . . . Walls Destroyed . | . . . . . Machines Disabled . | . . . . . Actions | -11 -10 -10 -10 -9 --------- Run | Scr Mat Min Exi Min Total 1202 | 67 281 276 306 272 Wait 14 | . . 13 1 . Move 1060 | 48 249 238 299 226 Hop . | . . . . . Pick Up 22 | 6 7 1 2 6 Fast Attach 7 | 6 . 1 . . Attach 7 | . 1 . . 6 Detach . | . . . . . Swap 6 | . 3 1 1 1 Drop 10 | . 5 2 3 . Fire 70 | 7 15 18 . 30 Melee . | . . . . . Ram . | . . . . . Kick . | . . . . . Crush 6 | . 1 2 . 3 Escape Stasis . | . . . . . Rewire . | . . . . . Trap . | . . . . . Miscellaneous . | . . . . . Route ------- -11/Scrapyard -10/Materials -10/Mines (discovered 2 exits: [*Mat] / *Exi) -10/Exiles (discovered 2 exits: [*Min x2]) -9/Mines (discovered 1 exit: [*Mat]) History --------- Turn | Location | Event 6 | -11/Scrapyard | Discovered new exit (range 14) 109 | -11/Scrapyard | Entered Materials 133 | -10/Materials | Central database locked down 315 | -10/Materials | Build established: Mutant 376 | -10/Materials | Discovered new exit (range 8) 568 | -10/Materials | Entered Mines 572 | -10/Mines | Met a Derelict bent on vengeance 709 | -10/Mines | Learned location of 1 exit from Materials 824 | -10/Mines | Learned location of 1 exit from Materials 898 | -10/Mines | Discovered new exit (range 12) 919 | -10/Mines | Assisted by bots powering up and referring to "LRC-V3" 1013 | -10/Mines | Deemed a non-threat by the Exiles lab entrance 1013 | -10/Mines | Discovered new exit (range 5) 1021 | -10/Mines | Entered Exiles 1021 | -10/Exiles | Accompanied by 3 allies 1045 | -10/Exiles | Discovered new exit (range 15) 1065 | -10/Exiles | Met 8R-AWN 1087 | -10/Exiles | Met EX-HEX 1165 | -10/Exiles | Met EX-DEC 1193 | -10/Exiles | Learned location of Zion (-6) 1221 | -10/Exiles | Met EX-BIN 1244 | -10/Exiles | Aligned with FarCom system 1245 | -10/Exiles | Given EX-Vault access code 1287 | -10/Exiles | Opened EX-Vault 1300 | -10/Exiles | Found Supersonic Drone Bay 1337 | -10/Exiles | Warned to stay clear of 0b10 Research branches 1514 | -10/Exiles | Discovered new exit (range 10) 1536 | -10/Exiles | Left Exiles lab with Supersonic Drone Bay 1536 | -10/Exiles | Entered Mines 1536 | -9/Mines | Accompanied by 3 allies 1627 | -9/Mines | Learned Materials stockpile data 2152 | -9/Mines | Discovered new exit (range 11) 2162 | -9/Mines | Assembled infested the area 2173 | -9/Mines | Core integrity fell below 50% 2177 | -9/Mines | Core integrity fell below 20% 2177 | -9/Mines | Destroyed by as-07793 with Assembled Rifle Last Messages --------------- 02024_ K-01 Serf collects debris. 02025_ Acquired 2 matter. 02027_ K-01 Serf collects debris. 02034_ Seismic Survey Station disabled. 02043_ G-34 Mercenary destroyed. 02046_ G-47 Trooper destroyed. 02051_ Acquired 32 matter. 02142_ Crushed K-01 Serf. 02142_ K-01 Serf destroyed. 02152_ EXIT=FOUND 02162_ ALERT: Infestation in the mines, dispatching Demolisher response squad. 02168_ Lgt. Treads destroyed. 02171_ Core Shielding destroyed. 02171_ System corrupted by crushing effect (+2). 02173_ Lgt. Ion Engine destroyed. 02174_ Slammed into as-31562. 02174_ Lgt. Treads destroyed. 02175_ Lgt. Assault Rifle destroyed. 02177_ Wheel destroyed. Map ----- +----------------------------------------------------+ | ?????????????????????????????????????????????????? | | ?????????????????????????????????????????????????? | | ?????????????????????????????????????????????????? | | ?????????????????????????????????????????????????? | | ?????????????????????????????????????????????????? | | ?????????????????????????????????????????????????? | | ?????????????????????????????????????????????????? | | ?????????????????????????????????????????????????? | | ?????????????????????????????????????????????????? | | ?????????????????????????????????????????????????? | | ?????????????????????????????????????????????????? | | ?????????????????????????????????????????????????? | | ?????????????????????????????????????????????????? | | ?????????????????????????????????????????????????? | | ?????????????????????????????????????????????????? | | ?????????????????????????????????????????????????? | | ?????????????????????????????????????????????????? | | ?????????????????????????????????????????????????? | | ?????????????????????????????????????????????????? | | ?????????????????????????????????????????????????? | | #??????????????????????????###???????????????????? | | ????########?????????????# ##??????????????????? | | #????# #?????????#### ! #??????????????????? | | #????# % #####????## a a ##a## ?????????? | | #????# % * #??### aaaaaaaaaaa ??????????? | | #????# % ### #### ] a@a ####?????????????????? | | #????# =%% #?# a #????????????????????? | | #????#= % #?####### ##] #???????????????????? | | #????### ###???????######! #???????????????????? | | ##?????# #??????????????? #???????????????????? | | ##????# #???????????????####???????????????????? | | #????# %#????????#####?????????????????????????? | | ###### %########## ##????????????????????????? | | #????????????????????????? | | ######### #????????????????????????? | | ###########???????# #????????????????????????? | | ??????????????????# #????????????????????????? | | ??????????????????## ##????????????????????????? | | ???????????????????## #?????????????????????????? | | ????????????????????# #?????????????????????????? | | ???????????????????## #######???????????????????? | | ?????????????????### #???????????????????? | | ????????????????## ##### #???????????????????? | | ????###???####### ##?# #???????????????????? | | ???## ##?# ] #?# #???????????????????? | | ???# #?# % #?# #???????????????????? | | ????# ###|#### ##?# #???????????????????? | | ?????# ## #??# ##??#!#???????????????????? | | ??????# ##?## ##???#%#???????????????????? | | ?????## ##?## #?####[##??????????????????? | +----------------------------------------------------+ Best States ------------- Heat Dissipation 25 Energy Generation 10 Energy Capacity 125 Matter Stores 300 Matter Capacity 300 Sight Range 16 Terrain Scan Density 10 Core Shielding 20 Evasion (%) 40 Recoil Reduction 2 Item Schematics ----------------- Huge Storage Unit | -10/Materials | Hacked Med. Storage Unit | -10/Materials | Hacked Robot Schematics ------------------ None Fabricated ------------ Nothing Alien Tech Used ----------------- None Achievements -------------- None Challenges ------------ None Game ------ Seed PulseLobotomyProtomatter Manual? 0 Play Time 00:11:38 Cumulative 440.8 hours Start 2022.01.23 @ 12:24:09 End 2022.01.23 @ 12:33:44 Sessions 1 Manual Loads 0 Difficulty Rogue Special Mode None Game No. 429 Rogue 214 Adventurer 112 Explorer 103 Win Type - Total 29 Types 21/0/5/2/0/0/0/1/0 Lore% 86 Gallery% 90 Achievement% 80 Wizard Run 0 Options --------- ASCII 1 Keyboard 1 Movement Vi Keybinds 1 Fullscreen 2 Font 18/SmallcapsGlow Map View 76x50 Tactical HUD 1 Map Filters NONE Filters NONE Steam 1 RUN: 032b8273-94e7-4f5c-a908-da27a38ced87